fUSD/lending_fUSD_20251109
["ID","MTS","AMOUNT","RATE_DAILY","PERIOD"]
[393448536,1762671042859,-921.99,0.00018888,2]
[393448537,1762671042869,-1500.0,0.000189,6]
[393448538,1762671042878,-216.0,0.00018904,2]
[393448539,1762671042888,-289.81,0.00018934,2]
[393448540,1762671042898,-470.0,0.00018943,2]
[393448541,1762671042908,-500.0,0.00018943,2]
[393448542,1762671042918,-508.31279467,0.00018964,2]
[393448543,1762671042927,-3416.09533425,0.00019,5]
[393448545,1762671042938,-5121.52870796,0.00019,2]
[393448547,1762671042947,-207886.01810996,0.00019,2]
[393448549,1762671042957,-2090.88235712,0.00019,2]
[393448550,1762671042966,-783.84494861,0.00019,2]
[393448551,1762671042976,-300.0,0.00019,2]
[393448552,1762671042994,-937.0,0.00019019,2]
[393448553,1762671043004,-166.66,0.00019041,2]
[393448554,1762671043015,-470.0,0.0001908,2]
[393448555,1762671043025,-500.0,0.0001908,2]
[393448556,1762671043035,-298.43740158,0.00019101,2]
[393448557,1762671043044,-921.99,0.00019162,2]
[393448558,1762671043054,-2327.89,0.00019178,2]
[393448560,1762671043063,-355.45651383,0.00019183,2]
[393448562,1762671043072,-793.6060028,0.00019199,2]
[393448564,1762671043082,-470.0,0.00019217,2]
[393448566,1762671043091,-500.0,0.00019217,2]
[393448567,1762671043100,-470.0,0.00019354,2]
[393448568,1762671043110,-500.0,0.00019354,2]
[393448569,1762671043119,-24470.67148425,0.00019372,2]
[393448570,1762671043128,-33140.82977887,0.00019373,2]
[393448572,1762671043138,-166.68,0.00019382,2]
[393448573,1762671043147,-280.96,0.00019391,2]
[393448574,1762671043157,-298.73583898,0.00019419,2]
[393448575,1762671043167,-921.99,0.00019436,2]
[393448576,1762671043176,-1000.0,0.00019438,2]
[393448577,1762671043186,-470.0,0.00019491,2]
[393448578,1762671043195,-500.0,0.00019491,2]
[393448579,1762671043205,-150.05270425,0.00019545,5]
[393448580,1762671043215,-1189.38394361,0.0001955,7]
[393448581,1762671043226,-61850.0,0.000196,3]
[393448582,1762671043235,-478.20968403,0.000196,3]
[393448583,1762671043245,-166.66,0.00019613,2]
[393448584,1762671043255,-470.0,0.00019628,2]
[393448585,1762671043265,-500.0,0.00019628,2]
[393448586,1762671043275,-193.21,0.00019665,2]
[393448587,1762671043286,-5167.0529584,0.00019702,2]
[393448588,1762671043296,-922.03193284,0.0001971,2]
[393448589,1762671043306,-1012.12,0.00019734,2]
[393448590,1762671043316,-549.32,0.00019734,2]
[393448591,1762671043326,-549.32,0.00019734,2]
[393448592,1762671043339,-1106.6,0.00019734,2]
[393448593,1762671043348,-150.0,0.00019739,2]
[393448594,1762671043358,-314.52,0.00019739,2]
[393448595,1762671043367,-470.0,0.00019765,2]
[393448596,1762671043378,-500.0,0.00019765,2]
[393448597,1762671043388,-587.0,0.00019814,2]
[393448598,1762671043397,-587.0,0.00019814,2]
[393448599,1762671043409,-193.21,0.00019839,2]
[393448600,1762671043418,-4875.75949894,0.000199,3]
[393448601,1762671043428,-470.0,0.00019902,2]
[393448602,1762671043438,-500.0,0.00019902,2]
[393448603,1762671043448,-129415.4750303,0.00019902,2]
[393448604,1762671043459,-500.0,0.0002,7]
[393448605,1762671043468,-203.97,0.0002,2]
[393448606,1762671043478,-64703.0,0.0002,2]
[393448607,1762671043488,-10822.52726064,0.0002,2]
[393448608,1762671043498,-1519.82789773,0.0002,2]
[393448609,1762671043508,-1452.01192522,0.0002,5]
[393448610,1762671043518,-25367.37066554,0.0002,2]
[393448612,1762671043633,-57593.22134348,0.0002,5]
[393448614,1762671043660,-8300.0,0.0002,4]
[393448616,1762671043669,-3950.0,0.0002,2]
[393448618,1762671043679,-7226.64036279,0.0002,2]
[393448619,1762671043688,-1283.33163411,0.0002,2]
[393448620,1762671043697,-7311.58635946,0.0002,2]
[393448621,1762671043707,-2172.02838569,0.0002,3]
[393448622,1762671043716,-10165.86502198,0.0002,2]
[393448623,1762671043725,-1035.85294866,0.0002,2]
[393448624,1762671043735,-2838.66526332,0.0002,2]
[393448625,1762671043744,-8733.23470703,0.0002,2]
[393448626,1762671043753,-200.0,0.0002,2]
[393448627,1762671043763,-1000.0,0.0002,7]
[393448628,1762671043773,-9009.50151639,0.0002001,2]
[393448629,1762671043782,-2351.0,0.00020012,2]
[393448630,1762671043791,-470.0,0.00020039,2]
[393448631,1762671043801,-500.0,0.00020039,2]
[393448632,1762671043811,-1000.0,0.00020116,2]
[393448633,1762671043821,-470.0,0.00020176,2]
[393448634,1762671043831,-395.34756632,0.00020176,2]
[393448635,1762671043840,-166.66,0.00020185,2]
[393448636,1762671043850,-902.8,0.00020187,2]
[393448637,1762671043859,-1152.9253541,0.00020244,2]
[393448638,1762671043869,-24470.67148425,0.00020264,2]
[393448639,1762671043878,-33140.82977887,0.00020265,2]
[393448640,1762671043888,-280.96,0.00020273,2]
[393448641,1762671043898,-470.0,0.00020313,2]
[393448642,1762671043907,-470.0,0.0002045,2]
[393448643,1762671043917,-1000.0,0.00020468,2]
[393448644,1762671043927,-156.203306,0.000205,2]
[393448645,1762671043936,-1026.287928,0.000205,2]
[393448646,1762671043948,-871.131549,0.000205,2]
[393448647,1762671043960,-354.524418,0.000205,2]
[393448648,1762671043970,-162.61440694,0.0002054,2]
[393448649,1762671043980,-21315.44,0.00020548,2]
[393448650,1762671043990,-181.5,0.00020561,2]
[393448651,1762671043999,-470.0,0.00020587,2]
[393448652,1762671044009,-1312.55854022,0.00020595,2]
[393448653,1762671044018,-22458.31516154,0.000207,2]
[393448654,1762671044027,-2000.0,0.000207,2]
[393448655,1762671044037,-470.0,0.00020724,2]
[393448656,1762671044046,-1000.0,0.00020795,2]
[393448657,1762671044056,-793.6060028,0.00020852,2]
[393448658,1762671044066,-470.0,0.00020861,2]
[393448659,1762671044076,-470.0,0.00020998,2]
[393448660,1762671044085,-20000.0,0.00021,2]
[393448661,1762671044095,-902.60680742,0.00021,2]
[393448662,1762671044104,-1182.31615962,0.00021,2]
[393448663,1762671044114,-195.15798385,0.00021,2]
[393448664,1762671044124,-350.0,0.00021,2]
[393448665,1762671044134,-478.20968403,0.00021041,2]
[393448666,1762671044144,-12399.31,0.00021068,2]
[393448667,1762671044155,-490.61479719,0.00021135,2]
[393448668,1762671044164,-280.96,0.00021154,2]
[393448669,1762671044175,-151.0,0.00021156,7]
[393448670,1762671044185,-151.514801,0.00021156,7]
[393448671,1762671044195,-154.628871,0.00021156,7]
[393448672,1762671044205,-154.628871,0.00021156,7]
[393448673,1762671044215,-154.628871,0.00021156,7]
[393448674,1762671044225,-154.628871,0.00021156,7]
[393448675,1762671044235,-191.059476,0.00021156,7]
[393448676,1762671044246,-336.546776,0.00021156,7]
[393448677,1762671044256,-191.059476,0.00021156,7]
[393448678,1762671044266,-336.546776,0.00021156,7]
[393448679,1762671044276,-151.0,0.00021156,7]
[393448680,1762671044286,-191.059476,0.00021156,7]
[393448681,1762671044296,-336.546776,0.00021156,7]
[393448682,1762671044306,-191.059476,0.00021156,7]
[393448683,1762671044317,-336.546776,0.00021156,7]
[393448684,1762671044329,-151.0,0.00021156,7]
[393448685,1762671044340,-1971.292487,0.00021156,7]
[393448686,1762671044350,-151.0,0.00021156,7]
[393448687,1762671044360,-1971.292487,0.00021156,7]
[393448688,1762671044371,-338.9931,0.00021156,7]
[393448689,1762671044381,-1971.292487,0.00021156,7]
[393448690,1762671044392,-338.9931,0.00021156,7]
[393448691,1762671044401,-1971.292487,0.00021156,7]
[393448692,1762671044413,-151.0,0.00021156,7]
[393448693,1762671044423,-338.9931,0.00021156,7]
[393448694,1762671044432,-338.9931,0.00021156,7]
[393448695,1762671044442,-151.0,0.00021156,7]
[393448696,1762671044451,-151.0,0.00021156,7]
[393448697,1762671044461,-1031.362102,0.00021156,7]
[393448698,1762671044471,-1031.362102,0.00021156,7]
[393448699,1762671044481,-151.0,0.00021156,7]
[393448700,1762671044491,-1031.362102,0.00021156,7]
[393448701,1762671044500,-151.0,0.00021156,7]
[393448702,1762671044510,-151.0,0.00021156,7]
[393448703,1762671044520,-1031.362102,0.00021156,7]
[393448704,1762671044531,-151.0,0.00021156,7]
[393448705,1762671044540,-151.0,0.00021156,7]
[393448706,1762671044550,-244.49106,0.00021156,7]
[393448707,1762671044560,-24470.67148425,0.00021157,2]
[393448708,1762671044569,-33140.82977887,0.00021157,2]
[393448709,1762671044579,-6316.24,0.0002137,2]
[393448710,1762671044589,-150.0,0.00021423,2]
[393448711,1762671044599,-150.0,0.00021423,2]
[393448712,1762671044609,-150.0,0.00021423,2]
[393448713,1762671044618,-150.0,0.00021423,2]
[393448714,1762671044627,-150.0,0.00021423,2]
[393448715,1762671044636,-150.0,0.00021423,2]
[393448716,1762671044647,-150.0,0.00021423,2]
[393448717,1762671044656,-150.0,0.00021423,2]
[393448718,1762671044666,-150.0,0.00021423,2]
[393448719,1762671044676,-608.0,0.00021428,2]
[393448720,1762671044686,-1316.0,0.00021428,2]
[393448721,1762671044695,-3425.0,0.00021428,2]
[393448722,1762671044705,-574.0,0.00021428,2]
[393448723,1762671044714,-820.0,0.00021428,2]
[393448724,1762671044723,-1596.0,0.00021428,2]
[393448725,1762671044733,-1273.0,0.00021428,2]
[393448726,1762671044742,-813.0,0.00021428,2]
[393448727,1762671044752,-6478.0,0.00021428,2]
[393448728,1762671044761,-6661.0,0.00021428,2]
[393448729,1762671044771,-559.0,0.00021428,2]
[393448730,1762671044781,-151.0,0.00021497,2]
[393448731,1762671044790,-57446.01984656,0.000215,2]
[393448732,1762671044801,-220.0909528,0.000215,2]
[393448733,1762671044811,-151.0,0.000215,7]
[393448734,1762671044820,-151.0,0.000215,7]
[393448735,1762671044830,-240.113776,0.000215,7]
[393448736,1762671044840,-166.384495,0.000215,7]
[393448737,1762671044849,-165.304444,0.000215,7]
[393448738,1762671044859,-151.792528,0.000215,7]
[393448739,1762671044869,-153.227742,0.000215,7]
[393448740,1762671044879,-151.0,0.000215,7]
[393448741,1762671044889,-153.227742,0.000215,7]
[393448742,1762671044899,-181.665505,0.000215,7]
[393448743,1762671044908,-181.665505,0.000215,7]
[393448744,1762671044918,-153.227742,0.000215,7]
[393448745,1762671044928,-181.665505,0.000215,7]
[393448746,1762671044938,-153.227742,0.000215,7]
[393448747,1762671044948,-181.665505,0.000215,7]
[393448748,1762671044958,-153.321094,0.000215,7]
[393448749,1762671044967,-151.0,0.000215,7]
[393448750,1762671044977,-151.0,0.000215,7]
[393448751,1762671044987,-151.0,0.000215,7]
[393448752,1762671044996,-151.0,0.000215,7]
[393448753,1762671045006,-187.260727,0.000215,7]
[393448754,1762671045016,-478.20968403,0.000215,7]
[393448755,1762671045025,-187.260727,0.000215,7]
[393448756,1762671045035,-187.260727,0.000215,7]
[393448757,1762671045045,-187.260727,0.000215,7]
[393448758,1762671045054,-151.0,0.000215,7]
[393448759,1762671045064,-151.0,0.000215,7]
[393448760,1762671045073,-151.0,0.000215,7]
[393448761,1762671045082,-151.0,0.000215,7]
[393448762,1762671045092,-151.0,0.000215,7]
[393448763,1762671045102,-151.0,0.000215,7]
[393448764,1762671045111,-696.053668,0.000215,7]
[393448765,1762671045121,-151.0,0.000215,7]
[393448766,1762671045130,-151.0,0.000215,7]
[393448767,1762671045141,-2567.176262,0.000215,7]
[393448768,1762671045150,-696.053668,0.000215,7]
[393448769,1762671045160,-151.0,0.000215,7]
[393448770,1762671045170,-170.193313,0.000215,7]
[393448771,1762671045179,-151.0,0.000215,7]
[393448772,1762671045189,-151.0,0.000215,7]
[393448773,1762671045199,-151.0,0.000215,7]
[393448774,1762671045208,-2567.176262,0.000215,7]
[393448775,1762671045217,-696.053668,0.000215,7]
[393448776,1762671045226,-151.0,0.000215,7]
[393448777,1762671045235,-151.0,0.000215,7]
[393448778,1762671045245,-2567.176262,0.000215,7]
[393448779,1762671045255,-151.0,0.000215,7]
[393448780,1762671045264,-151.0,0.000215,7]
[393448781,1762671045274,-153.672685,0.000215,7]
[393448782,1762671045283,-696.053668,0.000215,7]
[393448783,1762671045293,-151.0,0.000215,7]
[393448784,1762671045302,-2567.176262,0.000215,7]
[393448785,1762671045312,-151.0,0.000215,7]
[393448786,1762671045321,-151.0,0.000215,7]
[393448787,1762671045333,-151.0,0.000215,7]
[393448788,1762671045342,-151.0,0.000215,7]
[393448789,1762671045352,-151.0,0.000215,7]
[393448790,1762671045362,-290.456169,0.000215,7]
[393448791,1762671045371,-151.0,0.000215,7]
[393448792,1762671045381,-151.0,0.000215,7]
[393448793,1762671045390,-151.0,0.000215,7]
[393448794,1762671045400,-298.153219,0.000215,7]
[393448795,1762671045411,-298.153219,0.000215,7]
[393448796,1762671045420,-298.153219,0.000215,7]
[393448797,1762671045430,-298.153219,0.000215,7]
[393448798,1762671045439,-151.0,0.000215,7]
[393448799,1762671045448,-151.0,0.000215,7]
[393448800,1762671045458,-170.468976,0.000215,7]
[393448801,1762671045467,-151.0,0.000215,7]
[393448802,1762671045476,-170.468976,0.000215,7]
[393448803,1762671045485,-151.0,0.000215,7]
[393448804,1762671045495,-153.831829,0.000215,7]
[393448805,1762671045504,-153.908026,0.000215,7]
[393448806,1762671045514,-151.0,0.000215,7]
[393448807,1762671045523,-151.0,0.000215,7]
[393448808,1762671045533,-170.468976,0.000215,7]
[393448809,1762671045543,-170.468976,0.000215,7]
[393448810,1762671045552,-158.729657,0.000215,7]
[393448811,1762671045562,-995.65575,0.000215,7]
[393448812,1762671045571,-151.0,0.000215,7]
[393448813,1762671045581,-995.65575,0.000215,7]
[393448814,1762671045590,-254.161823,0.000215,7]
[393448815,1762671045599,-995.65575,0.000215,7]
[393448816,1762671045609,-995.65575,0.000215,7]
[393448817,1762671045618,-151.0,0.000215,7]
[393448818,1762671045627,-151.0,0.000215,7]
[393448819,1762671045636,-151.0,0.000215,7]
[393448820,1762671045646,-166.837852,0.000215,7]
[393448821,1762671045655,-152.608705,0.000215,7]
[393448822,1762671045665,-151.0,0.000215,7]
[393448823,1762671045674,-151.0,0.000215,7]
[393448824,1762671045683,-151.0,0.000215,7]
[393448825,1762671045692,-151.0,0.000215,7]
[393448826,1762671045702,-151.0,0.000215,7]
[393448827,1762671045711,-151.0,0.000215,7]
[393448828,1762671045722,-151.0,0.000215,7]
[393448829,1762671045731,-151.0,0.000215,7]
[393448830,1762671045741,-151.0,0.000215,7]
[393448831,1762671045750,-4451.081586,0.000215,7]
[393448832,1762671045759,-151.0,0.000215,7]
[393448833,1762671045768,-151.0,0.000215,7]
[393448834,1762671045778,-4451.081586,0.000215,7]
[393448835,1762671045786,-151.0,0.000215,7]
[393448836,1762671045796,-151.0,0.000215,7]
[393448837,1762671045805,-4451.081586,0.000215,7]
[393448838,1762671045814,-151.0,0.000215,7]
[393448839,1762671045823,-151.0,0.000215,7]
[393448840,1762671045832,-151.0,0.000215,7]
[393448841,1762671045841,-4451.081586,0.000215,7]
[393448842,1762671045851,-151.0,0.000215,7]
[393448843,1762671045860,-823.0,0.00021651,2]
[393448844,1762671045870,-823.0,0.00021651,2]
[393448845,1762671045879,-355.45651383,0.00021669,2]
[393448846,1762671045889,-129415.4750303,0.00021804,2]
[393448847,1762671045899,-151.0,0.00021804,7]
[393448848,1762671045909,-151.0,0.00021804,7]
[393448849,1762671045918,-151.0,0.00021804,7]
[393448850,1762671045928,-151.0,0.00021804,7]
[393448851,1762671045937,-151.0,0.00021804,7]
[393448852,1762671045946,-151.0,0.00021804,7]
[393448854,1762671045956,-151.0,0.00021804,7]
[393448855,1762671045965,-151.0,0.00021804,7]
[393448856,1762671045975,-151.0,0.00021804,7]
[393448857,1762671045984,-151.0,0.00021804,7]
[393448858,1762671045994,-151.0,0.00021804,7]
[393448859,1762671046003,-151.0,0.00021804,7]
[393448860,1762671046012,-151.0,0.00021804,7]
[393448861,1762671046021,-151.0,0.00021804,7]
[393448862,1762671046031,-151.0,0.00021804,7]
[393448863,1762671046041,-151.0,0.00021804,7]
[393448864,1762671046050,-151.0,0.00021804,7]
[393448865,1762671046060,-151.0,0.00021804,7]
[393448866,1762671046069,-151.0,0.00021804,7]
[393448867,1762671046079,-151.0,0.00021804,7]
[393448868,1762671046089,-151.0,0.00021804,7]
[393448869,1762671046099,-154.737705,0.00021804,7]
[393448870,1762671046108,-151.0,0.00021804,7]
[393448871,1762671046229,-151.0,0.00021804,7]
[393448872,1762671046239,-151.0,0.00021804,7]
[393448873,1762671046249,-151.0,0.00021804,7]
[393448874,1762671046258,-151.0,0.00021804,7]
[393448875,1762671046267,-151.0,0.00021804,7]
[393448876,1762671046277,-151.0,0.00021804,7]
[393448877,1762671046286,-151.0,0.00021804,7]
[393448878,1762671046296,-151.0,0.00021804,7]
[393448879,1762671046305,-151.0,0.00021804,7]
[393448880,1762671046315,-151.0,0.00021804,7]
[393448881,1762671046324,-151.0,0.00021804,7]
[393448882,1762671046337,-274.681251,0.00021804,7]
[393448883,1762671046346,-166.763674,0.00021804,7]
[393448884,1762671046355,-151.0,0.00021804,7]
[393448885,1762671046365,-151.0,0.00021804,7]
[393448886,1762671046375,-151.0,0.00021804,7]
[393448887,1762671046384,-720.147493,0.00021804,7]
[393448888,1762671046393,-151.0,0.00021804,7]
[393448889,1762671046403,-720.147493,0.00021804,7]
[393448890,1762671046413,-151.0,0.00021804,7]
[393448891,1762671046423,-151.0,0.00021804,7]
[393448892,1762671046432,-162.247724,0.00021804,7]
[393448893,1762671046442,-720.147493,0.00021804,7]
[393448894,1762671046451,-151.0,0.00021804,7]
[393448895,1762671046461,-720.147493,0.00021804,7]
[393448896,1762671046470,-151.0,0.00021804,7]
[393448897,1762671046479,-151.0,0.00021804,7]
[393448898,1762671046489,-151.0,0.00021804,7]
[393448899,1762671046498,-151.0,0.00021804,7]
[393448900,1762671046507,-151.0,0.00021804,7]
[393448901,1762671046517,-151.0,0.00021804,7]
[393448902,1762671046528,-157.540143,0.00021804,7]
[393448903,1762671046538,-1048.266309,0.00021804,7]
[393448904,1762671046547,-1048.266309,0.00021804,7]
[393448905,1762671046557,-1048.266309,0.00021804,7]
[393448906,1762671046567,-1048.266309,0.00021804,7]
[393448907,1762671046577,-151.0,0.00021804,7]
[393448908,1762671046587,-151.0,0.00021804,7]
[393448909,1762671046596,-151.0,0.00021804,7]
[393448910,1762671046606,-233.617037,0.00021804,7]
[393448911,1762671046615,-151.0,0.00021804,7]
[393448912,1762671046624,-281.786286,0.00021804,7]
[393448913,1762671046633,-151.0,0.00021804,7]
[393448914,1762671046643,-281.786286,0.00021804,7]
[393448915,1762671046653,-166.784343,0.00021804,7]
[393448916,1762671046663,-159.682235,0.00021804,7]
[393448917,1762671046673,-158.424085,0.00021804,7]
[393448918,1762671046682,-166.784343,0.00021804,7]
[393448919,1762671046692,-281.786286,0.00021804,7]
[393448920,1762671046701,-158.424085,0.00021804,7]
[393448921,1762671046711,-255.720552,0.00021804,7]
[393448922,1762671046720,-158.424085,0.00021804,7]
[393448923,1762671046730,-166.784343,0.00021804,7]
[393448924,1762671046740,-281.786286,0.00021804,7]
[393448925,1762671046750,-151.0,0.00021804,7]
[393448926,1762671046759,-255.720552,0.00021804,7]
[393448927,1762671046769,-166.784343,0.00021804,7]
[393448928,1762671046778,-151.0,0.00021804,7]
[393448929,1762671046788,-158.424085,0.00021804,7]
[393448930,1762671046797,-151.0,0.00021804,7]
[393448931,1762671046806,-151.0,0.00021804,7]
[393448932,1762671046815,-255.720552,0.00021804,7]
[393448933,1762671046824,-151.0,0.00021804,7]
[393448934,1762671046834,-151.0,0.00021804,7]
[393448935,1762671046843,-151.0,0.00021804,7]
[393448936,1762671046852,-649.096421,0.00021804,7]
[393448937,1762671046861,-151.0,0.00021804,7]
[393448938,1762671046871,-255.720552,0.00021804,7]
[393448939,1762671046880,-241.372738,0.00021804,7]
[393448940,1762671046889,-151.0,0.00021804,7]
[393448941,1762671046900,-649.096421,0.00021804,7]
[393448942,1762671046910,-241.372738,0.00021804,7]
[393448943,1762671046920,-151.0,0.00021804,7]
[393448944,1762671046929,-649.096421,0.00021804,7]
[393448945,1762671046938,-152.775424,0.00021804,7]
[393448946,1762671046947,-241.372738,0.00021804,7]
[393448947,1762671046957,-649.096421,0.00021804,7]
[393448948,1762671046966,-241.372738,0.00021804,7]
[393448949,1762671046976,-151.0,0.00021804,7]
[393448950,1762671046985,-688.396057,0.00021804,7]
[393448951,1762671046994,-151.0,0.00021804,7]
[393448953,1762671047004,-688.396057,0.00021804,7]
[393448954,1762671047013,-151.0,0.00021804,7]
[393448955,1762671047023,-176.311602,0.00021804,7]
[393448956,1762671047032,-151.0,0.00021804,7]
[393448957,1762671047041,-688.396057,0.00021804,7]
[393448958,1762671047051,-176.311602,0.00021804,7]
[393448959,1762671047060,-151.0,0.00021804,7]
[393448961,1762671047070,-688.396057,0.00021804,7]
[393448962,1762671047080,-176.311602,0.00021804,7]
[393448963,1762671047090,-176.311602,0.00021804,7]
[393448964,1762671047100,-158.935145,0.00021804,7]
[393448965,1762671047110,-151.0,0.00021804,7]
[393448966,1762671047119,-151.0,0.00021804,5]
[393448967,1762671047129,-151.0,0.00021804,7]
[393448968,1762671047138,-151.0,0.00021804,7]
[393448969,1762671047147,-151.0,0.00021804,7]
[393448970,1762671047156,-152.599887,0.00021804,7]
[393448971,1762671047166,-151.0,0.00021804,7]
[393448972,1762671047175,-151.0,0.00021804,7]
[393448973,1762671047184,-151.0,0.00021804,7]
[393448974,1762671047194,-165.702384,0.00021804,7]
[393448975,1762671047203,-151.0,0.00021804,7]
[393448976,1762671047213,-1900.0,0.000219,7]
[393448977,1762671047222,-478.20968403,0.000219,7]
[393448978,1762671047231,-478.20968403,0.000219,7]
[393448979,1762671047241,-5000.0,0.00021918,2]
[393448980,1762671047250,-800.0,0.00021918,4]
[393448981,1762671047259,-800.0,0.00021918,4]
[393448982,1762671047269,-800.0,0.00021918,4]
[393448983,1762671047278,-800.0,0.00021918,4]
[393448984,1762671047287,-800.0,0.00021918,4]
[393448985,1762671047297,-800.0,0.00021918,4]
[393448986,1762671047310,-800.0,0.00021918,4]
[393448987,1762671047329,-800.0,0.00021918,4]
[393448988,1762671047340,-800.0,0.00021918,4]
[393448989,1762671047351,-800.0,0.00021918,4]
[393448990,1762671047363,-800.0,0.00021918,4]
[393448991,1762671047373,-800.0,0.00021918,4]
[393448992,1762671047383,-800.0,0.00021918,4]
[393448993,1762671047393,-800.0,0.00021918,4]
[393448994,1762671047403,-800.0,0.00021918,4]
[393448995,1762671047413,-800.0,0.00021918,4]
[393448996,1762671047422,-800.0,0.00021918,4]
[393448997,1762671047432,-800.0,0.00021918,4]
[393448998,1762671047443,-800.0,0.00021918,4]
[393448999,1762671047452,-800.0,0.00021918,4]
[393449000,1762671047462,-500.0,0.00021918,2]
[393449001,1762671047473,-150.0,0.00021918,2]
[393449002,1762671047483,-2545.04154666,0.00021955,2]
[393449003,1762671047493,-3292.0,0.00021975,2]
[393449004,1762671047502,-4144.10163398,0.00022,2]
[393449005,1762671047512,-247640.88983916,0.00022,4]
[393449006,1762671047522,-4108.59202886,0.00022,2]
[393449007,1762671047532,-788.30218358,0.00022,7]
[393449008,1762671047542,-160.97,0.00022,2]
[393449009,1762671047552,-16723.59,0.00022,7]
[393449010,1762671047562,-280.96,0.00022035,2]
[393449011,1762671047571,-24470.67148425,0.00022049,2]
[393449012,1762671047580,-33140.82977887,0.00022049,2]
[393449013,1762671047590,-438.53661058,0.00022055,2]
[393449014,1762671047600,-489.91636949,0.000221,2]
[393449015,1762671047610,-238.05488233,0.0002211,2]
[393449016,1762671047619,-150.0,0.00022155,2]
[393449017,1762671047629,-2521.11,0.00022232,2]
[393449018,1762671047638,-338.12,0.00022384,2]
[393449019,1762671047647,-190.10232692,0.00022415,4]
[393449020,1762671047657,-35167.40568972,0.000225,2]
[393449021,1762671047667,-1000.0,0.00022515,2]
[393449022,1762671047676,-250.0,0.00022702,2]
[393449023,1762671047686,-518.07823043,0.0002271,2]
[393449024,1762671047695,-162.61440694,0.00022822,2]
[393449025,1762671047705,-19206.34413281,0.000229,2]
[393449026,1762671047714,-280.96,0.00022917,2]
[393449027,1762671047723,-486.97,0.00022918,2]
[393449028,1762671047733,-477.3,0.00022918,2]
[393449029,1762671047743,-477.3,0.00022918,2]
[393449030,1762671047752,-24470.67148425,0.00022941,2]
[393449031,1762671047762,-33140.82977887,0.00022941,2]
[393449032,1762671047771,-628.37975426,0.00023,7]
[393449033,1762671047781,-435.60836925,0.00023,2]
[393449034,1762671047790,-997.88219368,0.00023,2]
[393449035,1762671047800,-400.0,0.00023,2]
[393449036,1762671047809,-156.203306,0.00023,2]
[393449037,1762671047818,-153.743889,0.00023,2]
[393449038,1762671047828,-1026.287928,0.00023,2]
[393449039,1762671047837,-871.131549,0.00023,2]
[393449040,1762671047846,-354.524418,0.00023,2]
[393449041,1762671047856,-164.0,0.00023,7]
[393449042,1762671047865,-2560.76924219,0.000231,2]
[393449043,1762671047875,-51668.18922415,0.000232,2]
[393449044,1762671047884,-322.83,0.00023205,2]
[393449045,1762671047894,-350.0,0.0002325,2]
[393449046,1762671047904,-2327.0,0.00023383,2]
[393449047,1762671047914,-200.0,0.000235,2]
[393449048,1762671047923,-16723.59,0.000235,7]
[393449049,1762671047933,-3098.0,0.00023562,2]
[393449050,1762671047943,-1152.0,0.00023657,2]